[Event "GrandPrix_30.05"]
[Site "Chess.com"]
[Date "2020.05.30"]
[Round "6"]
[White "Grandelicious"]
[Black "Meizon19"]
[Result "1-0"]
[WhiteElo "2574"]
[BlackElo "2300"]
[TimeControl "600+2"]
[EndTime "10:56:50 PDT"]
[Termination "Grandelicious won by resignation"]

1. Nf3 {[%clk 0:10:01.9]} 1... Nf6 {[%clk 0:10:00.6]} 2. g3 {[%clk 0:10:03]}
2... g6 {[%clk 0:10:01.1]} 3. b3 {[%clk 0:10:03.4]} 3... Bg7 {[%clk 0:09:59.8]}
4. Bb2 {[%clk 0:10:04.9]} 4... O-O {[%clk 0:10:00.7]} 5. Bg2 {[%clk 0:10:06.3]}
5... d6 {[%clk 0:10:00]} 6. d4 {[%clk 0:10:05.1]} 6... Nc6 {[%clk 0:09:50.1]} 7.
O-O {[%clk 0:09:58.8]} 7... e5 {[%clk 0:09:38]} 8. dxe5 {[%clk 0:09:56.8]} 8...
Ng4 {[%clk 0:09:38.7]} 9. c4 {[%clk 0:09:21.7]} 9... Ncxe5 {[%clk 0:09:34.7]}
10. Nc3 {[%clk 0:09:18.7]} 10... Re8 {[%clk 0:09:08]} 11. h3 {[%clk 0:08:56.8]}
11... Nxf3+ {[%clk 0:09:00.7]} 12. exf3 {[%clk 0:08:58.7]} 12... Ne5 {[%clk
0:08:59.3]} 13. f4 {[%clk 0:08:53.4]} 13... Nc6 {[%clk 0:09:00]} 14. Qd2 {[%clk
0:08:07.7]} 14... Nd4 {[%clk 0:08:12.3]} 15. Kh2 {[%clk 0:08:03.4]} 15... Bd7
{[%clk 0:07:39.7]} 16. Rfe1 {[%clk 0:07:25.9]} 16... Bc6 {[%clk 0:07:00.5]} 17.
Nd5 {[%clk 0:06:01.3]} 17... Bxd5 {[%clk 0:06:44]} 18. Bxd5 {[%clk 0:05:28.4]}
18... Nc6 {[%clk 0:05:18.9]} 19. Rxe8+ {[%clk 0:05:13.5]} 19... Qxe8 {[%clk
0:05:19.6]} 20. Bxg7 {[%clk 0:05:14.2]} 20... Kxg7 {[%clk 0:05:20.1]} 21. Qc3+
{[%clk 0:05:12.4]} 21... f6 {[%clk 0:05:02.2]} 22. Re1 {[%clk 0:04:11]} 22...
Qf8 {[%clk 0:04:59.3]} 23. Qe3 {[%clk 0:03:21.9]} 23... a5 {[%clk 0:04:28.7]}
24. h4 {[%clk 0:03:14.8]} 24... a4 {[%clk 0:03:34.9]} 25. Kg2 {[%clk 0:02:33.6]}
25... axb3 {[%clk 0:03:35.2]} 26. axb3 {[%clk 0:02:35.5]} 26... Rc8 {[%clk
0:03:20.9]} 27. Qe6 {[%clk 0:02:28.4]} 27... Rd8 {[%clk 0:02:23.9]} 28. Re3
{[%clk 0:02:02.1]} 28... Kh8 {[%clk 0:02:02.4]} 29. Bxc6 {[%clk 0:01:14.3]}
29... bxc6 {[%clk 0:02:04.3]} 30. b4 {[%clk 0:01:15.9]} 30... c5 {[%clk
0:01:14.2]} 31. b5 {[%clk 0:01:10.1]} 31... h5 {[%clk 0:00:47.2]} 32. f5 {[%clk
0:00:58.2]} 32... gxf5 {[%clk 0:00:37.7]} 33. Qxf5 {[%clk 0:00:53.1]} 33... Qf7
{[%clk 0:00:39.2]} 34. Re6 {[%clk 0:00:44.8]} 34... Kg7 {[%clk 0:00:39.2]} 35.
Qe4 {[%clk 0:00:37.4]} 35... Kf8 {[%clk 0:00:39]} 36. Qe3 {[%clk 0:00:33.6]}
36... Qg7 {[%clk 0:00:27.6]} 37. Qf3 {[%clk 0:00:29.3]} 37... Kf7 {[%clk
0:00:23]} 38. Qd5 {[%clk 0:00:29.9]} 38... Kg6 {[%clk 0:00:24.2]} 39. Qe4+
{[%clk 0:00:27.2]} 39... Kh6 {[%clk 0:00:23.4]} 40. Re7 {[%clk 0:00:28.1]} 1-0

[Event "GrandPrix_30.05"]
[Site "Chess.com"]
[Date "2020.05.30"]
[Round "6"]
[White "lelajavakhishvili"]
[Black "Tokarev_Sergey"]
[Result "1/2-1/2"]
[WhiteElo "2088"]
[BlackElo "1994"]
[TimeControl "600+2"]
[EndTime "10:56:54 PDT"]
[Termination "Game drawn - insufficient material"]

1. Nf3 {[%clk 0:10:01.9]} 1... Nf6 {[%clk 0:09:56.3]} 2. c4 {[%clk 0:10:01.9]}
2... e6 {[%clk 0:09:56.5]} 3. d4 {[%clk 0:10:00.4]} 3... d5 {[%clk 0:09:56.3]}
4. g3 {[%clk 0:10:01.2]} 4... Be7 {[%clk 0:09:55.2]} 5. Bg2 {[%clk 0:10:00.9]}
5... O-O {[%clk 0:09:56.5]} 6. O-O {[%clk 0:10:01.8]} 6... b6 {[%clk 0:09:55.2]}
7. b3 {[%clk 0:09:57.5]} 7... Bb7 {[%clk 0:09:54.9]} 8. Bb2 {[%clk 0:09:58.6]}
8... c5 {[%clk 0:09:49.1]} 9. dxc5 {[%clk 0:09:48.6]} 9... bxc5 {[%clk 0:09:51]}
10. cxd5 {[%clk 0:09:48.2]} 10... exd5 {[%clk 0:09:50.4]} 11. Ne5 {[%clk
0:09:44.3]} 11... Qc7 {[%clk 0:09:25.5]} 12. Nd2 {[%clk 0:09:37.9]} 12... d4
{[%clk 0:09:21.3]} 13. Bxb7 {[%clk 0:09:22.3]} 13... Qxb7 {[%clk 0:09:19.2]} 14.
Rc1 {[%clk 0:09:21.9]} 14... Nbd7 {[%clk 0:08:51.4]} 15. Nxd7 {[%clk 0:09:16.6]}
15... Qxd7 {[%clk 0:08:53.3]} 16. Nf3 {[%clk 0:09:09.6]} 16... Rac8 {[%clk
0:08:49.4]} 17. Qd3 {[%clk 0:09:04.1]} 17... Qd5 {[%clk 0:08:31.7]} 18. Qc4
{[%clk 0:08:48.8]} 18... Rfd8 {[%clk 0:07:54.8]} 19. Rfd1 {[%clk 0:08:32.5]}
19... h6 {[%clk 0:06:37.7]} 20. Qxd5 {[%clk 0:08:26.8]} 20... Nxd5 {[%clk
0:06:39.6]} 21. Rc4 {[%clk 0:08:18.2]} 21... Nb6 {[%clk 0:05:36.9]} 22. Rc2
{[%clk 0:08:14.9]} 22... Nd5 {[%clk 0:05:32.3]} 23. a3 {[%clk 0:08:13.1]} 23...
Rb8 {[%clk 0:05:26.5]} 24. Rd3 {[%clk 0:08:10]} 24... a5 {[%clk 0:05:20.1]} 25.
Ne5 {[%clk 0:08:00.8]} 25... Rdc8 {[%clk 0:05:06.6]} 26. Nc4 {[%clk 0:07:42.4]}
26... Rb5 {[%clk 0:04:45.7]} 27. e3 {[%clk 0:07:40.1]} 27... Rcb8 {[%clk
0:03:46.5]} 28. exd4 {[%clk 0:07:33.4]} 28... cxd4 {[%clk 0:03:48.4]} 29. Nd2
{[%clk 0:07:10.9]} 29... Nc3 {[%clk 0:02:48.4]} 30. a4 {[%clk 0:06:35.2]} 30...
Nxa4 {[%clk 0:02:42.8]} 31. Bxd4 {[%clk 0:06:30]} 31... Nc5 {[%clk 0:02:42.9]}
32. Re3 {[%clk 0:06:06.1]} 32... Bf8 {[%clk 0:02:34.1]} 33. Bxc5 {[%clk
0:05:45.7]} 33... Bxc5 {[%clk 0:02:33.7]} 34. Re4 {[%clk 0:05:42.9]} 34... Bb4
{[%clk 0:02:23.9]} 35. Nc4 {[%clk 0:05:41.5]} 35... Rd5 {[%clk 0:02:20.8]} 36.
Kg2 {[%clk 0:05:38.8]} 36... Rd3 {[%clk 0:02:19.5]} 37. Re3 {[%clk 0:05:32.7]}
37... Rbd8 {[%clk 0:02:16.6]} 38. Kf3 {[%clk 0:05:00.8]} 38... f6 {[%clk
0:02:10.8]} 39. h4 {[%clk 0:04:56.4]} 39... Kh7 {[%clk 0:02:05.1]} 40. Ra2
{[%clk 0:04:52.5]} 40... R8d5 {[%clk 0:02:02.2]} 41. Ke2 {[%clk 0:04:47.9]}
41... Rd1 {[%clk 0:01:51.4]} 42. Kf3 {[%clk 0:04:25.7]} 42... Rb1 {[%clk
0:01:38.8]} 43. Ke2 {[%clk 0:03:56.6]} 43... g5 {[%clk 0:01:31.9]} 44. hxg5
{[%clk 0:03:55.7]} 44... hxg5 {[%clk 0:01:31.6]} 45. Kf3 {[%clk 0:03:52.8]}
45... Rd4 {[%clk 0:01:18.4]} 46. Rb2 {[%clk 0:03:04.1]} 46... g4+ {[%clk
0:01:13.2]} 47. Kg2 {[%clk 0:03:03.7]} 47... Rc1 {[%clk 0:01:10.2]} 48. f3
{[%clk 0:02:53.8]} 48... a4 {[%clk 0:01:03.5]} 49. fxg4 {[%clk 0:02:49.1]} 49...
Kg6 {[%clk 0:00:41.9]} 50. Re6 {[%clk 0:02:31.8]} 50... axb3 {[%clk 0:00:32.9]}
51. Ne5+ {[%clk 0:02:25.3]} 51... Kg7 {[%clk 0:00:26.9]} 52. Nf3 {[%clk
0:02:20.3]} 52... Rc2+ {[%clk 0:00:19.8]} 53. Rxc2 {[%clk 0:02:20.4]} 53... bxc2
{[%clk 0:00:21.7]} 54. Rc6 {[%clk 0:02:21.5]} 54... Rxg4 {[%clk 0:00:13.6]} 55.
Kh3 {[%clk 0:02:16.6]} 55... Re4 {[%clk 0:00:07.6]} 56. Rxc2 {[%clk 0:02:15.1]}
56... Re3 {[%clk 0:00:08.6]} 57. Rc7+ {[%clk 0:02:03.4]} 57... Re7 {[%clk
0:00:05.6]} 58. Rxe7+ {[%clk 0:02:02.8]} 58... Bxe7 {[%clk 0:00:07.5]} 59. Kg4
{[%clk 0:02:03.6]} 59... Bd6 {[%clk 0:00:08.1]} 60. Nh4 {[%clk 0:02:03.4]} 60...
Bxg3 {[%clk 0:00:09]} 61. Nf5+ {[%clk 0:02:04.6]} 61... Kf7 {[%clk 0:00:09.7]}
62. Nxg3 {[%clk 0:02:05.8]} 62... f5+ {[%clk 0:00:11.6]} 63. Nxf5 {[%clk
0:02:06]} 1/2-1/2

[Event "GrandPrix_30.05"]
[Site "Chess.com"]
[Date "2020.05.30"]
[Round "6"]
[White "hubertsmazak"]
[Black "kostasam18"]
[Result "1-0"]
[WhiteElo "2270"]
[BlackElo "2099"]
[TimeControl "600+2"]
[EndTime "10:56:58 PDT"]
[Termination "hubertsmazak won on time"]

1. d4 {[%clk 0:10:01.9]} 1... Nf6 {[%clk 0:09:59.4]} 2. c4 {[%clk 0:10:02.8]}
2... e6 {[%clk 0:09:59.6]} 3. g3 {[%clk 0:10:03.6]} 3... d5 {[%clk 0:09:58.9]}
4. Bg2 {[%clk 0:10:04.5]} 4... Be7 {[%clk 0:09:59.6]} 5. Nf3 {[%clk 0:10:05.4]}
5... O-O {[%clk 0:09:59.8]} 6. O-O {[%clk 0:10:06.5]} 6... dxc4 {[%clk
0:09:59.4]} 7. Qc2 {[%clk 0:10:07.4]} 7... a6 {[%clk 0:09:59.4]} 8. a4 {[%clk
0:10:08.4]} 8... Bd7 {[%clk 0:09:59.3]} 9. Qxc4 {[%clk 0:10:09.4]} 9... Bc6
{[%clk 0:09:59.5]} 10. Bg5 {[%clk 0:10:10.4]} 10... Bd5 {[%clk 0:09:51.8]} 11.
Qc2 {[%clk 0:10:10.6]} 11... Be4 {[%clk 0:09:04.8]} 12. Qc1 {[%clk 0:10:09.8]}
12... h6 {[%clk 0:08:46.6]} 13. Bxf6 {[%clk 0:10:05.5]} 13... Bxf6 {[%clk
0:08:46]} 14. Nbd2 {[%clk 0:09:52.9]} 14... Bc6 {[%clk 0:08:29.3]} 15. Rd1
{[%clk 0:09:13.8]} 15... a5 {[%clk 0:08:11.1]} 16. e4 {[%clk 0:08:40.3]} 16...
g6 {[%clk 0:07:49.9]} 17. Qc2 {[%clk 0:08:03.6]} 17... Na6 {[%clk 0:07:41.5]}
18. Nc4 {[%clk 0:08:04]} 18... Nb4 {[%clk 0:07:39.1]} 19. Qe2 {[%clk 0:08:02.9]}
19... b6 {[%clk 0:07:35.7]} 20. Nfe5 {[%clk 0:07:42.7]} 20... Bb7 {[%clk
0:07:30.3]} 21. b3 {[%clk 0:07:37.9]} 21... Qe7 {[%clk 0:07:19.2]} 22. Rac1
{[%clk 0:07:37.1]} 22... Rad8 {[%clk 0:07:08.7]} 23. f4 {[%clk 0:07:32.7]} 23...
Bg7 {[%clk 0:06:22.3]} 24. Qe3 {[%clk 0:07:14.3]} 24... Qe8 {[%clk 0:05:29]} 25.
Na3 {[%clk 0:07:09.6]} 25... Rc8 {[%clk 0:04:51.9]} 26. Nb5 {[%clk 0:06:59.1]}
26... Qe7 {[%clk 0:04:15.1]} 27. Na7 {[%clk 0:06:48.5]} 27... Ra8 {[%clk
0:04:02.8]} 28. Nac6 {[%clk 0:06:49.5]} 28... Nxc6 {[%clk 0:04:01.8]} 29. Nxc6
{[%clk 0:06:51.4]} 29... Qd7 {[%clk 0:03:44]} 30. e5 {[%clk 0:06:50.2]} 30...
Rac8 {[%clk 0:03:32.6]} 31. Na7 {[%clk 0:06:37.1]} 31... Rb8 {[%clk 0:03:31.1]}
32. Bxb7 {[%clk 0:06:33.5]} 32... Rxb7 {[%clk 0:03:30.9]} 33. Nc6 {[%clk
0:06:33.9]} 33... Ra8 {[%clk 0:03:15.3]} 34. d5 {[%clk 0:06:11.7]} 34... exd5
{[%clk 0:03:04.5]} 35. Rxd5 {[%clk 0:06:11.6]} 35... Qe8 {[%clk 0:02:22]} 36.
Qe4 {[%clk 0:05:47.1]} 36... Bf8 {[%clk 0:02:17.7]} 37. Rb5 {[%clk 0:04:54.5]}
37... Rbb8 {[%clk 0:00:42.4]} 38. Nxb8 {[%clk 0:04:48.9]} 38... Rxb8 {[%clk
0:00:42.5]} 39. Rxc7 {[%clk 0:03:07.5]} 39... Bc5+ {[%clk 0:00:40.3]} 40. Kg2
{[%clk 0:03:08.8]} 40... Rd8 {[%clk 0:00:32.3]} 41. e6 {[%clk 0:02:53.6]} 41...
Rd2+ {[%clk 0:00:28.7]} 42. Kh3 {[%clk 0:02:54.2]} 42... Qxe6+ {[%clk
0:00:26.3]} 43. Qxe6 {[%clk 0:02:54.3]} 43... fxe6 {[%clk 0:00:28.2]} 44. Rcxc5
{[%clk 0:02:09.9]} 44... bxc5 {[%clk 0:00:26.2]} 45. Rxa5 {[%clk 0:02:10.4]}
45... Rb2 {[%clk 0:00:22.6]} 46. Rxc5 {[%clk 0:02:08.6]} 46... Rxb3 {[%clk
0:00:23]} 47. Rc7 {[%clk 0:02:09.5]} 47... Ra3 {[%clk 0:00:22.3]} 48. Ra7 {[%clk
0:02:09.6]} 48... h5 {[%clk 0:00:21.6]} 49. Kh4 {[%clk 0:02:09.2]} 49... Ra2
{[%clk 0:00:15.3]} 50. Kg5 {[%clk 0:02:10.3]} 50... Rxh2 {[%clk 0:00:15.3]} 51.
Kxg6 {[%clk 0:02:11.6]} 51... Kf8 {[%clk 0:00:15.8]} 52. Kf6 {[%clk 0:02:13]}
52... Kg8 {[%clk 0:00:13.7]} 53. a5 {[%clk 0:02:09.2]} 53... Rg2 {[%clk
0:00:13.4]} 54. a6 {[%clk 0:01:55.2]} 54... Rxg3 {[%clk 0:00:14]} 55. Rb7 {[%clk
0:01:56.1]} 55... Ra3 {[%clk 0:00:12.1]} 56. a7 {[%clk 0:01:57.3]} 56... Ra6
{[%clk 0:00:12.7]} 57. Rb8+ {[%clk 0:01:54.2]} 1-0

[Event "GrandPrix_30.05"]
[Site "Chess.com"]
[Date "2020.05.30"]
[Round "6"]
[White "vladislavkovalev"]
[Black "Funo09"]
[Result "1-0"]
[WhiteElo "2842"]
[BlackElo "2697"]
[TimeControl "600+2"]
[EndTime "10:57:00 PDT"]
[Termination "vladislavkovalev won by resignation"]

1. e4 {[%clk 0:10:01.9]} 1... c5 {[%clk 0:10:00.1]} 2. Nf3 {[%clk 0:10:00.3]}
2... Nf6 {[%clk 0:10:01.2]} 3. e5 {[%clk 0:10:01.9]} 3... Nd5 {[%clk 0:10:02.2]}
4. Nc3 {[%clk 0:10:02.6]} 4... e6 {[%clk 0:10:03.7]} 5. Nxd5 {[%clk 0:09:54]}
5... exd5 {[%clk 0:10:05.6]} 6. d4 {[%clk 0:09:55.5]} 6... Nc6 {[%clk 0:10:07]}
7. dxc5 {[%clk 0:09:56]} 7... Bxc5 {[%clk 0:10:08.9]} 8. Qxd5 {[%clk 0:09:57.2]}
8... Qb6 {[%clk 0:10:09.9]} 9. Bc4 {[%clk 0:09:35.3]} 9... Bxf2+ {[%clk
0:10:09.8]} 10. Ke2 {[%clk 0:09:36.8]} 10... O-O {[%clk 0:10:11.2]} 11. Rf1
{[%clk 0:09:10.2]} 11... Bc5 {[%clk 0:10:10.8]} 12. Ng5 {[%clk 0:08:38.8]} 12...
Nd4+ {[%clk 0:10:10.6]} 13. Kd1 {[%clk 0:08:40.3]} 13... Ne6 {[%clk 0:10:11.7]}
14. Ne4 {[%clk 0:08:41.9]} 14... d6 {[%clk 0:10:12.5]} 15. exd6 {[%clk
0:08:32.8]} 15... Rd8 {[%clk 0:10:12.8]} 16. Qh5 {[%clk 0:07:53]} 16... Bxd6
{[%clk 0:10:13]} 17. Bd3 {[%clk 0:07:50.8]} 17... Bc7 {[%clk 0:10:13.3]} 18.
Qxf7+ {[%clk 0:07:34.4]} 18... Kh8 {[%clk 0:10:13]} 19. Bd2 {[%clk 0:06:59.3]}
19... Bd7 {[%clk 0:08:03.9]} 20. Bc3 {[%clk 0:06:22.2]} 20... Bb5 {[%clk
0:05:31.1]} 21. Nd2 {[%clk 0:05:44.6]} 21... Bxd3 {[%clk 0:04:34.3]} 22. cxd3
{[%clk 0:05:45.3]} 22... Qc6 {[%clk 0:01:56.4]} 23. Re1 {[%clk 0:04:02.1]} 23...
Nd4 {[%clk 0:01:47.5]} 24. Re7 {[%clk 0:03:53.7]} 24... Qxg2 {[%clk 0:01:19.2]}
25. Bxd4 {[%clk 0:03:22.7]} 25... Qg4+ {[%clk 0:01:18.2]} 26. Nf3 {[%clk
0:01:45.6]} 26... Be5 {[%clk 0:01:07.4]} 27. Bxe5 {[%clk 0:01:26.9]} 27... Rxd3+
{[%clk 0:01:05.1]} 28. Ke2 {[%clk 0:01:28.3]} 28... Qe4+ {[%clk 0:00:49.9]} 29.
Kf2 {[%clk 0:01:29.3]} 29... Qe3+ {[%clk 0:00:50.3]} 30. Kg2 {[%clk 0:01:12]}
30... Rd2+ {[%clk 0:00:35.2]} 31. Nxd2 {[%clk 0:01:12.7]} 31... Qxd2+ {[%clk
0:00:37.1]} 32. Qf2 {[%clk 0:01:13.8]} 32... Qg5+ {[%clk 0:00:37.9]} 33. Qg3
{[%clk 0:01:01.2]} 33... Qxe7 {[%clk 0:00:39.8]} 34. Re1 {[%clk 0:00:57.1]}
34... b6 {[%clk 0:00:35.2]} 35. Bc3 {[%clk 0:00:56.7]} 35... Qd7 {[%clk
0:00:34.4]} 36. Qg5 {[%clk 0:00:34.2]} 36... Qb7+ {[%clk 0:00:11.5]} 37. Kg1
{[%clk 0:00:33]} 37... h6 {[%clk 0:00:06.2]} 38. Qxh6+ {[%clk 0:00:27.9]} 38...
Kg8 {[%clk 0:00:07.5]} 39. Qe6+ {[%clk 0:00:29.4]} 39... Kh8 {[%clk 0:00:08.9]}
40. Qe7 {[%clk 0:00:26.1]} 1-0

[Event "GrandPrix_30.05"]
[Site "Chess.com"]
[Date "2020.05.30"]
[Round "6"]
[White "Martin_Petrov2000"]
[Black "Sam_ChessMood"]
[Result "0-1"]
[WhiteElo "2296"]
[BlackElo "2575"]
[TimeControl "600+2"]
[EndTime "10:57:03 PDT"]
[Termination "Sam_ChessMood won by resignation"]

1. e4 {[%clk 0:09:57.4]} 1... c6 {[%clk 0:09:53.2]} 2. d4 {[%clk 0:09:57.8]}
2... d5 {[%clk 0:09:51.7]} 3. e5 {[%clk 0:09:59.4]} 3... Bf5 {[%clk 0:09:51.9]}
4. Nf3 {[%clk 0:10:00.6]} 4... e6 {[%clk 0:09:52.3]} 5. Be2 {[%clk 0:10:01.9]}
5... Ne7 {[%clk 0:09:51.2]} 6. O-O {[%clk 0:10:02.2]} 6... Ng6 {[%clk
0:09:51.6]} 7. Nbd2 {[%clk 0:09:46.5]} 7... Nf4 {[%clk 0:09:48.9]} 8. Nb3 {[%clk
0:09:33.6]} 8... Nxe2+ {[%clk 0:09:49.3]} 9. Qxe2 {[%clk 0:09:35.5]} 9... Be7
{[%clk 0:09:38.2]} 10. a4 {[%clk 0:09:32.3]} 10... Nd7 {[%clk 0:09:31.4]} 11. a5
{[%clk 0:09:32.8]} 11... O-O {[%clk 0:09:29.9]} 12. Be3 {[%clk 0:09:17.8]} 12...
h6 {[%clk 0:09:15.2]} 13. Ne1 {[%clk 0:09:16.5]} 13... Qc7 {[%clk 0:09:10.2]}
14. g4 {[%clk 0:09:12.1]} 14... Bh7 {[%clk 0:09:05.9]} 15. f4 {[%clk 0:09:12.7]}
15... c5 {[%clk 0:08:42.7]} 16. dxc5 {[%clk 0:08:47.3]} 16... Nxc5 {[%clk
0:08:39.7]} 17. Nxc5 {[%clk 0:08:47.7]} 17... Bxc5 {[%clk 0:08:40.7]} 18. c3
{[%clk 0:08:47.7]} 18... Rfd8 {[%clk 0:08:21.3]} 19. Nf3 {[%clk 0:08:37.1]}
19... b6 {[%clk 0:07:37]} 20. a6 {[%clk 0:07:41.8]} 20... Be4 {[%clk 0:07:09.9]}
21. Nd4 {[%clk 0:07:39.1]} 21... Rac8 {[%clk 0:07:01.8]} 22. Nb5 {[%clk
0:07:33.9]} 22... Qe7 {[%clk 0:06:56.3]} 23. Bd4 {[%clk 0:07:13.2]} 23... Rd7
{[%clk 0:06:38.2]} 24. Rf2 {[%clk 0:06:39.3]} 24... f6 {[%clk 0:06:04.4]} 25.
Bxc5 {[%clk 0:06:09.8]} 25... bxc5 {[%clk 0:05:58.5]} 26. Nd6 {[%clk 0:06:08.1]}
26... Rxd6 {[%clk 0:05:58.5]} 27. exd6 {[%clk 0:06:08.7]} 27... Qxd6 {[%clk
0:06:00.4]} 28. Ra5 {[%clk 0:05:35.1]} 28... f5 {[%clk 0:04:01.3]} 29. g5 {[%clk
0:04:10.8]} 29... hxg5 {[%clk 0:02:46.6]} 30. fxg5 {[%clk 0:04:11.1]} 30... e5
{[%clk 0:02:43.7]} 31. Rb5 {[%clk 0:03:17]} 31... d4 {[%clk 0:02:35.6]} 32. Rb7
{[%clk 0:03:17.3]} 32... Qg6 {[%clk 0:01:50.4]} 33. h4 {[%clk 0:02:46.7]} 33...
d3 {[%clk 0:01:41.8]} 34. Qd1 {[%clk 0:02:36]} 34... Qxa6 {[%clk 0:01:07.1]} 35.
Rd7 {[%clk 0:01:58.8]} 35... Qe6 {[%clk 0:00:47.9]} 36. Rxa7 {[%clk 0:01:39.7]}
36... f4 {[%clk 0:00:48.9]} 37. Qh5 {[%clk 0:01:09.3]} 37... Bg6 {[%clk
0:00:49.9]} 38. Qf3 {[%clk 0:01:10]} 38... e4 {[%clk 0:00:51.3]} 39. Qxf4 {[%clk
0:00:56.9]} 39... e3 {[%clk 0:00:52.6]} 40. Rf1 {[%clk 0:00:34.8]} 40... e2
{[%clk 0:00:51.8]} 41. Re1 {[%clk 0:00:23.9]} 41... Rf8 {[%clk 0:00:44.5]} 42.
Qg3 {[%clk 0:00:02.7]} 42... d2 {[%clk 0:00:37.5]} 43. Rxe2 {[%clk 0:00:03.1]}
0-1

[Event "GrandPrix_30.05"]
[Site "Chess.com"]
[Date "2020.05.30"]
[Round "6"]
[White "NikolaN98"]
[Black "Salnaa"]
[Result "1-0"]
[WhiteElo "2118"]
[BlackElo "2114"]
[TimeControl "600+2"]
[EndTime "10:57:04 PDT"]
[Termination "NikolaN98 won on time"]

1. e4 {[%clk 0:10:01.9]} 1... c5 {[%clk 0:10:01.1]} 2. Nc3 {[%clk 0:10:02.4]}
2... Nc6 {[%clk 0:10:01.7]} 3. f4 {[%clk 0:10:03.5]} 3... g6 {[%clk 0:09:55.1]}
4. Nf3 {[%clk 0:10:03.5]} 4... Bg7 {[%clk 0:09:54.3]} 5. Bb5 {[%clk 0:10:05]}
5... Nd4 {[%clk 0:09:54.5]} 6. O-O {[%clk 0:10:05.1]} 6... a6 {[%clk 0:09:39.6]}
7. Bc4 {[%clk 0:10:05.1]} 7... e6 {[%clk 0:09:34.9]} 8. d3 {[%clk 0:10:04.4]}
8... b5 {[%clk 0:09:35.4]} 9. Bb3 {[%clk 0:10:04.9]} 9... Ne7 {[%clk 0:08:58]}
10. Nxd4 {[%clk 0:10:04.8]} 10... cxd4 {[%clk 0:08:54.5]} 11. Ne2 {[%clk
0:10:05.9]} 11... O-O {[%clk 0:08:08.7]} 12. Qe1 {[%clk 0:10:05.7]} 12... d5
{[%clk 0:07:05.7]} 13. e5 {[%clk 0:10:04.3]} 13... Nf5 {[%clk 0:06:32.5]} 14. g4
{[%clk 0:10:02.4]} 14... Ne3 {[%clk 0:06:33.3]} 15. Bxe3 {[%clk 0:10:02.2]}
15... dxe3 {[%clk 0:06:35.2]} 16. d4 {[%clk 0:10:03.6]} 16... Bd7 {[%clk
0:06:18.2]} 17. Rf3 {[%clk 0:09:44.5]} 17... a5 {[%clk 0:06:17.7]} 18. c3 {[%clk
0:09:44.3]} 18... f6 {[%clk 0:05:05.7]} 19. exf6 {[%clk 0:09:42.8]} 19... Bxf6
{[%clk 0:04:57.6]} 20. Rxe3 {[%clk 0:09:42]} 20... Qb6 {[%clk 0:04:12.2]} 21. g5
{[%clk 0:09:34.5]} 21... Bg7 {[%clk 0:04:02.9]} 22. Qh4 {[%clk 0:09:34.3]} 22...
b4 {[%clk 0:03:52.9]} 23. Rh3 {[%clk 0:09:13.4]} 23... bxc3 {[%clk 0:03:16.9]}
24. bxc3 {[%clk 0:09:11.5]} 24... Kf7 {[%clk 0:03:05.7]} 25. Re1 {[%clk
0:07:54.7]} 25... a4 {[%clk 0:02:56]} 26. Bc2 {[%clk 0:06:40.8]} 26... e5 {[%clk
0:02:48.1]} 27. fxe5 {[%clk 0:06:19]} 27... Bxh3 {[%clk 0:02:46.8]} 28. Qxh3
{[%clk 0:06:18.7]} 28... Kg8 {[%clk 0:02:46.1]} 29. Qe3 {[%clk 0:05:57.8]} 29...
Rae8 {[%clk 0:02:01.3]} 30. Ng3 {[%clk 0:05:35]} 30... Ra8 {[%clk 0:01:30.4]}
31. h4 {[%clk 0:05:22.7]} 31... Qe6 {[%clk 0:01:28.7]} 32. Kg2 {[%clk
0:04:38.8]} 32... Qg4 {[%clk 0:01:08.3]} 33. Bd1 {[%clk 0:04:10.9]} 33... Qxh4
{[%clk 0:01:05.7]} 34. Rh1 {[%clk 0:04:11.7]} 34... Qf4 {[%clk 0:01:06.4]} 35.
Qxf4 {[%clk 0:04:12.7]} 35... Rxf4 {[%clk 0:01:07.8]} 36. Bf3 {[%clk 0:04:14.3]}
36... Rd8 {[%clk 0:01:02.3]} 37. Rb1 {[%clk 0:04:14.1]} 37... Rf7 {[%clk
0:00:54.8]} 38. Rb5 {[%clk 0:04:10.6]} 38... Rfd7 {[%clk 0:00:50]} 39. Ne2
{[%clk 0:04:03.9]} 39... h6 {[%clk 0:00:35.4]} 40. Nf4 {[%clk 0:04:03.2]} 40...
hxg5 {[%clk 0:00:35.6]} 41. Nxd5 {[%clk 0:03:59.2]} 41... Rf8 {[%clk 0:00:23]}
42. Bg4 {[%clk 0:03:55.6]} 42... Rdd8 {[%clk 0:00:18.7]} 43. e6 {[%clk
0:03:42.7]} 43... Rfe8 {[%clk 0:00:19.2]} 44. Kf3 {[%clk 0:03:16.3]} 44... Rd6
{[%clk 0:00:18.1]} 45. Nc7 {[%clk 0:02:37.9]} 45... Re7 {[%clk 0:00:18.1]} 46.
Rb8+ {[%clk 0:02:37.7]} 46... Kh7 {[%clk 0:00:19.1]} 47. Nb5 {[%clk 0:02:07.4]}
47... Rdxe6 {[%clk 0:00:18.8]} 48. Bxe6 {[%clk 0:02:07.9]} 48... Rxe6 {[%clk
0:00:20.7]} 49. d5 {[%clk 0:02:07.7]} 49... Rf6+ {[%clk 0:00:20.6]} 50. Kg2
{[%clk 0:02:07.7]} 50... g4 {[%clk 0:00:14.9]} 51. d6 {[%clk 0:02:02.9]} 51...
Rf7 {[%clk 0:00:09.1]} 52. Rc8 {[%clk 0:01:46.9]} 52... Kh6 {[%clk 0:00:05.8]}
53. Rc7 {[%clk 0:01:47.5]} 53... Rf8 {[%clk 0:00:07.1]} 54. d7 {[%clk 0:01:47]}
54... Bf6 {[%clk 0:00:06.7]} 55. Nd6 {[%clk 0:01:42.1]} 55... Be5 {[%clk
0:00:05.5]} 56. Rc8 {[%clk 0:01:39]} 56... Bxd6 {[%clk 0:00:02.2]} 57. Rxf8
{[%clk 0:01:39.7]} 1-0